[Event "45th FIDE Womens Olympiad 2024"]
[Site "Budapest"]
[Date "2024.09.16"]
[Round "6.201"]
[White "Henderson De La Fuente, Andrea"]
[Black "Vilhete, Vania Fausto Da T."]
[Result "1/2-1/2"]
[ECO "B30"]
[WhiteElo "1986"]
[BlackElo "1877"]
[PlyCount "110"]
[EventDate "2024.09.05"]
[EventType "team-tourn"]
[EventCountry "HUN"]
[WhiteTeam "Andorra"]
[BlackTeam "Mozambique"]
[WhiteTeamCountry "AND"]
[BlackTeamCountry "MOZ"]
[TimeControl "40/5400+30:1800+30"]

1. e4 c5 2. Nc3 e6 3. Nf3 Nc6 4. Bb5 Nd4 5. O-O Nxb5 6. Nxb5 a6 7. Nc3 d6 8. d4 cxd4 9. Qxd4 Qc7 10. a4 Nf6 11. Rd1 Be7 12. Be3 O-O 13. a5 Bd7 14. Qd3 Bc6 15. Bb6 Qc8 16. e5 dxe5 17. Nxe5 Nd5 18. Nxd5 exd5 19. Nxc6 bxc6 20. c4 dxc4 21. Qxc4 Bf6 22. Rd2 Re8 23. g3 Qe6 24. Qxe6 Rxe6 25. Rad1 Rae8 26. Kf1 h6 27. b3 Bc3 28. Rd8 Bb4 29. Rxe8+ Rxe8 30. Rd7 Re5 31. Rd8+ Kh7 32. Ra8 Bxa5 33. Rxa6 Re1+ 34. Kg2 Bb4 35. Ra7 f6 36. Rd7 Rb1 37. Rd3 Rb2 38. Kf3 c5 39. h4 Rc2 40. h5 c4 41. bxc4 Rxc4 42. Rd7 Rc6 43. Be3 Bc5 44. Bf4 Ra6 45. Rd2 Ra3+ 46. Kg4 Ra4 47. Kf5 Ra3 48. Ke4 Bb6 49. Bd6 Ra4+ 50. Kf5 Rd4 51. Rxd4 Bxd4 52. f3 Bc3 53. Be7 Be5 54. f4 Bc3 55. Ke6 Kg8 1/2-1/2

[Event "45th FIDE Womens Olympiad 2024"]
[Site "Budapest"]
[Date "2024.09.16"]
[Round "6.202"]
[White "Castro, Neusa Aridas De"]
[Black "De La Riva Real, Ariadna"]
[Result "1/2-1/2"]
[ECO "B38"]
[WhiteElo "1684"]
[BlackElo "1823"]
[PlyCount "84"]
[EventDate "2024.09.05"]
[EventType "team-tourn"]
[EventCountry "HUN"]
[WhiteTeam "Mozambique"]
[BlackTeam "Andorra"]
[WhiteTeamCountry "MOZ"]
[BlackTeamCountry "AND"]
[TimeControl "40/5400+30:1800+30"]

1. e4 c5 2. Nf3 g6 3. d4 cxd4 4. Nxd4 Bg7 5. c4 Nc6 6. Be3 Nf6 7. Nc3 O-O 8. Be2 d6 9. Nc2 Bd7 10. O-O Rc8 11. Rc1 b6 12. b3 Na5 13. Na3 Nb7 14. f3 a5 15. Qe1 Nc5 16. Qf2 Ne8 17. Rfd1 f5 18. exf5 Bxf5 19. Nab5 Nc7 20. Na7 Ra8 21. Nc6 Qe8 22. Nd4 Bd7 23. Qe1 Rb8 24. Qd2 N5e6 25. Ne4 d5 26. cxd5 Nxd5 27. Nxe6 Bxe6 28. Bc4 Nc7 29. Bxe6+ Nxe6 30. Qd5 Qf7 31. Re1 Rfd8 32. Qc4 Bd4 33. h3 Bxe3+ 34. Rxe3 Rd4 35. Qf1 Qf4 36. Rec3 Rf8 37. Rc8 Qe3+ 38. Kh1 Nd8 39. R8c4 Rd5 40. R4c3 Qf4 41. Qc4 e6 42. Qc7 Qxc7 1/2-1/2

[Event "45th FIDE Womens Olympiad 2024"]
[Site "Budapest"]
[Date "2024.09.16"]
[Round "6.203"]
[White "Muratet Carmona, Julia"]
[Black "Sandramo, Chineva Rufino"]
[Result "1/2-1/2"]
[ECO "C54"]
[WhiteElo "1816"]
[BlackElo "1524"]
[PlyCount "145"]
[EventDate "2024.09.05"]
[EventType "team-tourn"]
[EventCountry "HUN"]
[WhiteTeam "Andorra"]
[BlackTeam "Mozambique"]
[WhiteTeamCountry "AND"]
[BlackTeamCountry "MOZ"]
[TimeControl "40/5400+30:1800+30"]

1. e4 e5 2. Bc4 Bc5 3. Nf3 Nc6 4. c3 Nf6 5. d3 d6 6. h3 Be6 7. Bb3 Bd5 8. Bc4 Bxc4 9. Qc2 Bb3 10. Qxb3 Qc8 11. Bg5 Nh5 12. g4 Nf4 13. Bxf4 exf4 14. d4 Bb6 15. Nbd2 Qd7 16. O-O-O O-O-O 17. Nc4 f6 18. Nxb6+ axb6 19. e5 d5 20. Rhe1 Rde8 21. Re2 Re6 22. Rde1 Rhe8 23. Qc2 fxe5 24. Nxe5 Nxe5 25. Rxe5 g6 26. Qe2 Rxe5 27. dxe5 Re6 28. g5 c6 29. Qd3 Qe7 30. h4 Rxe5 31. Rxe5 Qxe5 32. Kd2 Kd7 33. Qh3+ Qe6 34. Qf3 Qf5 35. Kc1 Kd6 36. b3 Ke5 37. Qe2+ Qe4 38. Qd2 f3 39. b4 Qxh4 40. Qe3+ Qe4 41. Qxb6 Kf5 42. Kd2 Kxg5 43. Qd8+ Kh5 44. Qd7 h6 45. Qh3+ Kg5 46. Qg3+ Kf5 47. Qh3+ Kg5 48. Qg3+ Qg4 49. Qe5+ Qf5 50. Qg3+ Kf6 51. Qd6+ Kg7 52. Qe7+ Qf7 53. Qe5+ Kh7 54. a4 h5 55. b5 cxb5 56. axb5 h4 57. Qg5 Kg7 58. Qxh4 Qf6 59. Qg4 Qf5 60. Qxf5 gxf5 61. Ke3 Kf6 62. Kxf3 Ke5 63. Ke3 f4+ 64. Kd3 Kf5 65. f3 Ke5 66. c4 dxc4+ 67. Kxc4 b6 68. Kc3 Kd5 69. Kd3 Kc5 70. Ke4 Kxb5 71. Kxf4 Kc5 72. Ke4 b5 73. Kd3 1/2-1/2

[Event "45th FIDE Womens Olympiad 2024"]
[Site "Budapest"]
[Date "2024.09.16"]
[Round "6.205"]
[White "Lyons, Kieran"]
[Black "Johnson, Gabriella"]
[Result "1/2-1/2"]
[ECO "C58"]
[WhiteElo "1818"]
[BlackElo "1896"]
[PlyCount "138"]
[EventDate "2024.09.05"]
[EventType "team-tourn"]
[EventCountry "HUN"]
[WhiteTeam "Fiji"]
[BlackTeam "Trinidad & Tobago"]
[WhiteTeamCountry "FIJ"]
[TimeControl "40/5400+30:1800+30"]

1. e4 e5 2. Nf3 Nc6 3. Bc4 Nf6 4. Ng5 d5 5. exd5 Na5 6. Bb5+ c6 7. dxc6 bxc6 8. Bd3 Nd5 9. Ne4 Nf4 10. Bf1 f5 11. Ng3 c5 12. Bb5+ Bd7 13. Bxd7+ Qxd7 14. Qf3 Rb8 15. d3 Bd6 16. O-O O-O 17. Nh5 Nxh5 18. Qxh5 Nc6 19. Nd2 Rf6 20. Nc4 f4 21. Qf3 Bc7 22. c3 Rd8 23. Rd1 Na5 24. Qe4 Nxc4 25. Qxc4+ Qd5 26. Qxd5+ Rxd5 27. Kf1 Rh6 28. h3 Rhd6 29. Ke2 g5 30. c4 Rd4 31. f3 Rd8 32. b3 R4d6 33. Bb2 Rc6 34. Bc3 a5 35. Kd2 Kf7 36. Kc2 h5 37. a3 Rb8 38. Rab1 Ra6 39. Re1 Kf6 40. Re2 Bd6 41. Rbe1 Re8 42. d4 cxd4 43. Bxd4 Rc6 44. Bc3 a4 45. Re4 axb3+ 46. Kxb3 Ra6 47. Bb4 Rb8 48. c5 Bxc5 49. R1e2 Rab6 50. Rc4 Bxb4 51. Rxb4 Kf5 52. Ree4 Rxb4+ 53. Rxb4 Re8 54. a4 g4 55. hxg4+ hxg4 56. a5 gxf3 57. gxf3 Re6 58. Rb6 e4 59. fxe4+ Rxe4 60. a6 Re1 61. Rb5+ Kg4 62. Rb4 Rb1+ 63. Kc3 Rxb4 64. Kxb4 f3 65. a7 f2 66. a8=Q f1=Q 67. Qg8+ Kf3 68. Qf7+ Kg2 69. Qxf1+ Kxf1 1/2-1/2

[Event "45th FIDE Womens Olympiad 2024"]
[Site "Budapest"]
[Date "2024.09.16"]
[Round "6.206"]
[White "Hermoso Rodriguez, Ysvett"]
[Black "Terubea, Cydel"]
[Result "1-0"]
[ECO "B02"]
[WhiteElo "1943"]
[BlackElo "1681"]
[PlyCount "121"]
[EventDate "2024.09.05"]
[EventType "team-tourn"]
[EventCountry "HUN"]
[WhiteTeam "Trinidad & Tobago"]
[BlackTeam "Fiji"]
[BlackTeamCountry "FIJ"]
[TimeControl "40/5400+30:1800+30"]

1. e4 d5 2. exd5 Nf6 3. Bc4 Nxd5 4. Qf3 e6 5. Nc3 c6 6. a3 a6 7. Nge2 Bd6 8. d4 Qf6 9. Qxf6 Nxf6 10. Bg5 Nbd7 11. f3 h6 12. Bd2 b5 13. Bd3 Bb7 14. Ne4 Be7 15. Bf4 Nxe4 16. Bxe4 Nf6 17. Bd3 Nd5 18. Bd2 Bf6 19. c3 O-O 20. Nf4 Bh4+ 21. g3 Nxf4 22. Bxf4 Bf6 23. Rf1 Rfe8 24. O-O-O Rac8 25. Be4 Ba8 26. Bd6 e5 27. Bf5 Rcd8 28. dxe5 g6 29. exf6 gxf5 30. Be7 Rc8 31. b4 Kh7 32. Kd2 Rc7 33. Ke3 c5 34. Kf4 cxb4 35. Bxb4 Bb7 36. Rf2 Kg6 37. Rd6 Rc4+ 38. Rd4 Rxd4+ 39. cxd4 Kxf6 40. Rc2 Bd5 41. Rc5 Rd8 42. Rc7 Re8 43. Rd7 Bc6 44. Ra7 Ra8 45. Rc7 Bd5 46. Rd7 Bc4 47. Rd6+ Kg7 48. Kxf5 a5 49. Bd2 Bd3+ 50. Kf4 a4 51. d5 Bc4 52. Bc3+ Kh7 53. Rd7 Kg8 54. Bb4 Rc8 55. d6 Be6 56. Rc7 Rd8 57. Ke5 Rd7 58. f4 Rd8 59. Kf6 Re8 60. Re7 Kf8 61. d7 1-0

[Event "45th FIDE Womens Olympiad 2024"]
[Site "Budapest"]
[Date "2024.09.16"]
[Round "6.207"]
[White "Prasad, Tanvi"]
[Black "La Fleur, Zara"]
[Result "0-1"]
[ECO "A05"]
[WhiteElo "1564"]
[BlackElo "1773"]
[PlyCount "76"]
[EventDate "2024.09.05"]
[EventType "team-tourn"]
[EventCountry "HUN"]
[WhiteTeam "Fiji"]
[BlackTeam "Trinidad & Tobago"]
[WhiteTeamCountry "FIJ"]
[TimeControl "40/5400+30:1800+30"]

1. b3 Nf6 2. Bb2 g6 3. e3 Bg7 4. Nf3 O-O 5. Be2 b6 6. O-O Bb7 7. d4 e6 8. Nbd2 d5 9. c4 Qe7 10. Qc1 Nbd7 11. cxd5 Nxd5 12. Rb1 Rac8 13. Ba3 c5 14. Qd1 Nc3 15. Qe1 Nxb1 16. Qxb1 Rfd8 17. Ne4 Nf6 18. Nc3 Nd5 19. Rc1 Nxc3 20. Rxc3 Qd7 21. Rd3 Be4 22. Qd1 Bxd3 23. Qxd3 cxd4 24. exd4 Bxd4 25. Qb1 Qc6 26. h3 Qc2 27. Qf1 Qxa2 28. Be7 Rd7 29. Bg5 Qxb3 30. Bb5 Rd5 31. Ba6 Rc2 32. Nxd4 Rxd4 33. Qe1 Rc5 34. Kh2 Rxg5 35. Qc1 Qd5 36. Qc8+ Kg7 37. Bb7 Rxg2+ 38. Kh1 Rd1# {0-} 0-1

[Event "45th FIDE Womens Olympiad 2024"]
[Site "Budapest"]
[Date "2024.09.16"]
[Round "6.208"]
[White "James, Shemilah"]
[Black "Sukhu, Makayla"]
[Result "1-0"]
[ECO "C80"]
[WhiteElo "1774"]
[BlackElo "1521"]
[PlyCount "33"]
[EventDate "2024.09.05"]
[EventType "team-tourn"]
[EventCountry "HUN"]
[WhiteTeam "Trinidad & Tobago"]
[BlackTeam "Fiji"]
[BlackTeamCountry "FIJ"]
[TimeControl "40/5400+30:1800+30"]

1. e4 e5 2. Nf3 Nc6 3. Bb5 a6 4. Ba4 Nf6 5. d4 Nxe4 6. O-O b5 7. Bb3 Bd6 8. dxe5 Bc5 9. Qd5 O-O 10. Qxe4 h6 11. Nc3 Bb7 12. Qg4 Kh8 13. Qh5 Qe7 14. Bxh6 g6 15. Qh3 Kg8 16. Bg5 Qe8 17. Bf6 1-0

[Event "45th FIDE Womens Olympiad 2024"]
[Site "Budapest"]
[Date "2024.09.16"]
[Round "6.209"]
[White "Seine, Rose Berline"]
[Black "Bwalya Mulwale, Lubuuto"]
[Result "0-1"]
[ECO "D30"]
[WhiteElo "1778"]
[BlackElo "1852"]
[PlyCount "128"]
[EventDate "2024.09.05"]
[EventType "team-tourn"]
[EventCountry "HUN"]
[WhiteTeam "Haiti"]
[BlackTeam "Zambia"]
[WhiteTeamCountry "HAI"]
[BlackTeamCountry "ZAM"]
[TimeControl "40/5400+30:1800+30"]

1. d4 d5 2. c4 e6 3. Nf3 Nf6 4. Bg5 c6 5. e3 Qa5+ 6. Nbd2 Ne4 7. Bf4 Bb4 8. a3 Nxd2 9. Nxd2 Be7 10. Bd3 Nd7 11. b4 Qd8 12. c5 O-O 13. Qc2 h6 14. h3 Re8 15. Nf3 Bf6 16. O-O e5 17. dxe5 Bxe5 18. Nxe5 Nxe5 19. Be2 Qf6 20. Rfd1 Bf5 21. Qd2 Qg6 22. Kh2 Be4 23. f3 Bf5 24. g4 Bc8 25. Rg1 Qe6 26. Bg3 Ng6 27. Bf2 Qe5+ 28. Kh1 d4 29. e4 Rd8 30. Rad1 d3 31. Bg3 Qf6 32. f4 Be6 33. Bf3 Nh4 34. Bg2 Nxg2 35. Rxg2 Qd4 36. f5 Bb3 37. Re1 Re8 38. Rge2 Rad8 39. Bf2 Qc4 40. Re3 Qc2 41. Qxc2 Bxc2 42. e5 d2 43. Kg2 dxe1=Q 44. Rxe1 Rd3 45. Bg3 Rxa3 46. e6 fxe6 47. fxe6 Ra4 48. Bd6 Rxb4 49. e7 Re4 50. Rf1 R8xe7 51. Bxe7 Rxe7 52. Rf2 Bd3 53. Kg3 Re5 54. Rb2 Bb5 55. Rc2 a5 56. Kf4 Rd5 57. h4 g5+ 58. hxg5 hxg5+ 59. Ke3 a4 60. Rc3 Kf7 61. Ke4 Ke6 62. Rf3 Rxc5 63. Rf8 Rc4+ 64. Kf3 Rf4+ {0-} 0-1

[Event "45th FIDE Womens Olympiad 2024"]
[Site "Budapest"]
[Date "2024.09.16"]
[Round "6.210"]
[White "Likando, Namakau"]
[Black "Cadeau, Merisena"]
[Result "0-1"]
[ECO "B50"]
[WhiteElo "1746"]
[BlackElo "1671"]
[PlyCount "128"]
[EventDate "2024.09.05"]
[EventType "team-tourn"]
[EventCountry "HUN"]
[WhiteTeam "Zambia"]
[BlackTeam "Haiti"]
[WhiteTeamCountry "ZAM"]
[BlackTeamCountry "HAI"]
[TimeControl "40/5400+30:1800+30"]

1. e4 c5 2. Nf3 Nc6 3. c3 d6 4. Bc4 Nf6 5. d3 g6 6. Bg5 Bg7 7. a3 a5 8. a4 O-O 9. h3 b6 10. Qd2 Re8 11. O-O Bb7 12. Na3 Nd7 13. Nb5 Nde5 14. Nxe5 Nxe5 15. Ba2 Qd7 16. d4 cxd4 17. cxd4 Nc6 18. Rac1 Rec8 19. Bh6 Bh8 20. Qf4 Qe8 21. Rfd1 Nxd4 22. Rxc8 Rxc8 23. Nxd4 e5 24. Qg3 exd4 25. Qxd6 Qxe4 26. f3 Qe2 27. Bb3 Qe5 28. Qxb6 Bc6 29. Qa7 Qf5 30. Re1 Bd5 31. Bxd5 Qxd5 32. Qe7 Qd8 33. Qe2 d3 34. Qd2 Qb6+ 35. Be3 Qb4 36. Qd1 Rc2 37. Bh6 Bd4+ 38. Kh1 Qxa4 39. Qxd3 Rxb2 40. Re8+ Qxe8 41. Qxd4 Rb1+ 42. Kh2 f6 43. Qd5+ Kh8 44. Qxa5 Qe5+ 45. Qxe5 fxe5 46. Kg3 Kg8 47. Bg5 Kf7 48. Kh2 Rb2 49. Kg3 Ke6 50. Kh2 Kf5 51. Be3 Re2 52. Bg1 Kf4 53. Ba7 h5 54. Bb6 g5 55. Bc7 g4 56. hxg4 hxg4 57. fxg4 Kxg4 58. Kg1 e4 59. Kf1 Rc2 60. Bb6 Kg3 61. Ba7 Rxg2 62. Bd4 Kf3 63. Ke1 e3 64. Kf1 Rc2 {0-} 0-1

[Event "45th FIDE Womens Olympiad 2024"]
[Site "Budapest"]
[Date "2024.09.16"]
[Round "6.211"]
[White "Jonet, Davena"]
[Black "Mbatha, Constance"]
[Result "0-1"]
[ECO "D02"]
[WhiteElo "1659"]
[BlackElo "1799"]
[PlyCount "70"]
[EventDate "2024.09.05"]
[EventType "team-tourn"]
[EventCountry "HUN"]
[WhiteTeam "Haiti"]
[BlackTeam "Zambia"]
[WhiteTeamCountry "HAI"]
[BlackTeamCountry "ZAM"]
[TimeControl "40/5400+30:1800+30"]

1. d4 d5 2. Bf4 Bf5 3. e3 e6 4. Bd3 Bg6 5. Nf3 Nf6 6. c3 Nbd7 7. Bg5 Be7 8. O-O O-O 9. Bxg6 hxg6 10. Nbd2 Kh7 11. Re1 Rh8 12. e4 dxe4 13. Nxe4 c6 14. Bh4 Kg8 15. h3 Nxe4 16. Rxe4 Bxh4 17. Qb3 Rb8 18. Rd1 Bf6 19. Ne5 Qe7 20. Ng4 Rh5 21. Rde1 Nf8 22. a3 Qd7 23. Qd1 Rd8 24. Qf3 Nh7 25. Qd1 c5 26. Kh1 Qc8 27. Qa4 a6 28. Rd1 Rhd5 29. Ne3 R5d7 30. dxc5 Rxd1+ 31. Nxd1 Qxc5 32. Re1 Ng5 33. Ne3 Qc8 34. Nc4 b5 35. Qc2 Qxc4 {0-} 0-1

[Event "45th FIDE Womens Olympiad 2024"]
[Site "Budapest"]
[Date "2024.09.16"]
[Round "6.212"]
[White "Mwale, Naomi"]
[Black "Dunat, Kineberlie"]
[Result "0-1"]
[ECO "C54"]
[WhiteElo "1767"]
[BlackElo "1582"]
[PlyCount "162"]
[EventDate "2024.09.05"]
[EventType "team-tourn"]
[EventCountry "HUN"]
[WhiteTeam "Zambia"]
[BlackTeam "Haiti"]
[WhiteTeamCountry "ZAM"]
[BlackTeamCountry "HAI"]
[TimeControl "40/5400+30:1800+30"]

1. e4 e5 2. Nf3 Nc6 3. Bc4 Bc5 4. O-O Nf6 5. d3 h6 6. c3 Be7 7. Re1 O-O 8. d4 d6 9. d5 Na5 10. Bd3 b6 11. b4 Nb7 12. h3 a5 13. b5 Nc5 14. a4 Nh7 15. Be3 Nxd3 16. Qxd3 f5 17. exf5 Bxf5 18. Qc4 Rc8 19. Nxe5 dxe5 20. d6+ Kh8 21. dxe7 Qxe7 22. Bf4 Be6 23. Rxe5 Bxc4 24. Rxe7 Rxf4 25. Nd2 Bg8 26. Ne4 Nf6 27. Nxf6 Rxf6 28. Rd1 Rf7 29. Re5 Bh7 30. Rd4 Rcf8 31. f3 Rf4 32. Rd7 R4f7 33. Rd4 Bc2 34. Kf2 Rc8 35. Re2 Bh7 36. Re6 Bg8 37. Re5 c6 38. c4 cxb5 39. cxb5 Kh7 40. h4 Rfc7 41. h5 Rc4 42. Rd7 R8c7 43. Rd8 Rc8 44. Rd7 R4c7 45. Rd4 Rc5 46. Re7 Rxh5 47. Rdd7 Rg5 48. f4 Rc2+ 49. Kf3 Rgxg2 50. f5 Rgf2+ 51. Kg3 Rxf5 52. Rxg7+ Kh8 53. Kg4 Rg2+ 54. Kxf5 Rxg7 55. Rd6 Bh7+ 56. Ke5 Rg6 57. Rd8+ Bg8 58. Rb8 Kg7 59. Rb7+ Bf7 60. Rc7 h5 61. Rc3 h4 62. Rh3 Rh6 63. Kf4 Be6 64. Rh2 h3 65. Kg3 Rg6+ 66. Kf2 Rg2+ 67. Rxg2+ hxg2 68. Kxg2 Bb3 69. Kf2 Bxa4 70. Ke2 Bxb5+ 71. Kd2 Kf6 72. Kc3 Ke5 73. Kb3 Kd4 74. Ka3 Kc4 75. Ka2 Kb4 76. Kb2 Bc4 77. Kb1 Ka3 78. Ka1 b5 79. Kb1 b4 80. Ka1 b3 81. Kb1 Bd3+ {0-} 0-1

[Event "45th FIDE Womens Olympiad 2024"]
[Site "Budapest"]
[Date "2024.09.16"]
[Round "6.213"]
[White "Bouzana, Christina"]
[Black "Charinda, Kudzanayi"]
[Result "0-1"]
[ECO "A50"]
[WhiteElo "1644"]
[BlackElo "1854"]
[PlyCount "148"]
[EventDate "2024.09.05"]
[EventType "team-tourn"]
[EventCountry "HUN"]
[WhiteTeam "Cyprus"]
[BlackTeam "Zimbabwe"]
[WhiteTeamCountry "CYP"]
[BlackTeamCountry "ZIM"]
[TimeControl "40/5400+30:1800+30"]

1. d4 Nf6 2. c4 e6 3. Nc3 b6 4. e4 d6 5. Nf3 Bb7 6. Bd3 Be7 7. O-O Nbd7 8. Re1 O-O 9. h3 a6 10. Bd2 Rc8 11. a3 c6 12. b4 e5 13. d5 cxd5 14. cxd5 Rc7 15. Rc1 Qb8 16. Qb3 Rfc8 17. Be3 Nh5 18. g3 g6 19. Rc2 Rf8 20. Bh6 Ng7 21. g4 Kh8 22. Rec1 Nf6 23. Ne2 Rxc2 24. Rxc2 Rc8 25. Nd2 Rc7 26. Rxc7 Qxc7 27. Qc3 Qd7 28. f4 exf4 29. Nxf4 Nfe8 30. g5 Kg8 31. Be2 Qd8 32. Nf3 Bc8 33. Bf1 f5 34. Qd4 fxe4 35. Qxe4 Bf5 36. Qc4 Bc8 37. Bd3 b5 38. Qc3 Qb6+ 39. Qd4 Qc7 40. Qb2 Bf5 41. Nd4 Bxd3 42. Nxd3 Nh5 43. Ne6 Qc4 44. Qd4 Qxd4+ 45. Nxd4 Nc7 46. Nc6 Nxd5 47. Kf2 Kf7 48. Nb8 Nc7 49. Kf3 Ke6 50. Nc6 Kd7 51. Nd4 Ne6 52. Nxe6 Kxe6 53. Ke4 Ng3+ 54. Kf3 Nf5 55. Ke4 d5+ 56. Kf3 Nxh6 57. gxh6 Bf8 58. Nc5+ Bxc5 59. bxc5 Ke5 60. h4 d4 61. c6 Kd6 62. c7 Kxc7 63. Ke4 Kc6 64. Kxd4 Kd6 65. Ke4 a5 66. Kd4 Kc6 67. Ke5 b4 68. axb4 axb4 69. Kf6 b3 70. Kg7 b2 71. Kxh7 b1=Q 72. Kg7 Qb2+ 73. Kxg6 Qh8 74. h7 Kd6 {0-} 0-1

[Event "45th FIDE Womens Olympiad 2024"]
[Site "Budapest"]
[Date "2024.09.16"]
[Round "6.214"]
[White "Makwena, Christine"]
[Black "Sokolova, Larisa"]
[Result "1-0"]
[ECO "B80"]
[WhiteElo "1860"]
[BlackElo "1705"]
[PlyCount "75"]
[EventDate "2024.09.05"]
[EventType "team-tourn"]
[EventCountry "HUN"]
[WhiteTeam "Zimbabwe"]
[BlackTeam "Cyprus"]
[WhiteTeamCountry "ZIM"]
[BlackTeamCountry "CYP"]
[TimeControl "40/5400+30:1800+30"]

1. e4 c5 2. Nf3 d6 3. d4 cxd4 4. Nxd4 Nf6 5. Nc3 a6 6. f3 e6 7. Be3 b5 8. a3 Qc7 9. Qd2 Nc6 10. Nxc6 Qxc6 11. Be2 Be7 12. O-O-O Bb7 13. g4 d5 14. g5 Nd7 15. exd5 Qd6 16. dxe6 Qxd2+ 17. Rxd2 fxe6 18. Rhd1 Bc6 19. f4 Rd8 20. Bg4 Kf7 21. Ne2 Nb8 22. Nd4 Bd5 23. f5 e5 24. Nxb5 Bc6 25. Nd6+ Bxd6 26. Rxd6 Rxd6 27. Rxd6 Be4 28. Ba7 Nc6 29. Rd7+ Ne7 30. Bc5 Re8 31. Kd2 Bc6 32. Rc7 Rd8+ 33. Ke3 Rd7 34. Rxd7 Bxd7 35. Bxe7 Kxe7 36. f6+ gxf6 37. gxf6+ Ke8 38. f7+ 1-0

[Event "45th FIDE Womens Olympiad 2024"]
[Site "Budapest"]
[Date "2024.09.16"]
[Round "6.215"]
[White "Paunescu, Aida"]
[Black "Wakuruwarewa, Colletta"]
[Result "1/2-1/2"]
[ECO "D02"]
[WhiteElo "1603"]
[BlackElo "1814"]
[PlyCount "67"]
[EventDate "2024.09.05"]
[EventType "team-tourn"]
[EventCountry "HUN"]
[WhiteTeam "Cyprus"]
[BlackTeam "Zimbabwe"]
[WhiteTeamCountry "CYP"]
[BlackTeamCountry "ZIM"]
[TimeControl "40/5400+30:1800+30"]

1. d4 d5 2. Nf3 Nf6 3. Bf4 Bf5 4. e3 e6 5. c4 Be7 6. Qb3 Qc8 7. Bd3 Bxd3 8. Qxd3 O-O 9. O-O Nbd7 10. h3 Bd6 11. Ne5 dxc4 12. Qxc4 Nd5 13. Nxd7 Qxd7 14. Bxd6 cxd6 15. Qd3 Rfc8 16. Nc3 Nxc3 17. bxc3 d5 18. Rfc1 Rc4 19. Rab1 Rac8 20. Rc2 a5 21. Rb3 h6 22. e4 a4 23. Rb4 Rxb4 24. cxb4 Rxc2 25. Qxc2 dxe4 26. Qxe4 b5 27. Qe5 Kh7 28. Qc5 Kg6 29. Kf1 Qd5 30. Qxd5 exd5 31. Ke2 Kf5 32. Ke3 h5 33. g3 g5 34. f3 1/2-1/2

[Event "45th FIDE Womens Olympiad 2024"]
[Site "Budapest"]
[Date "2024.09.16"]
[Round "6.216"]
[White "Zengeni, Tatenda Melisa"]
[Black "Pica, Eleni"]
[Result "1-0"]
[ECO "A45"]
[WhiteElo "1732"]
[BlackElo "1609"]
[PlyCount "149"]
[EventDate "2024.09.05"]
[EventType "team-tourn"]
[EventCountry "HUN"]
[WhiteTeam "Zimbabwe"]
[BlackTeam "Cyprus"]
[WhiteTeamCountry "ZIM"]
[BlackTeamCountry "CYP"]
[TimeControl "40/5400+30:1800+30"]

1. d4 Nf6 2. e3 g6 3. Bd3 Bg7 4. Nd2 O-O 5. f4 d6 6. Ngf3 Nbd7 7. O-O c5 8. c3 a6 9. Qe1 b5 10. Qh4 Bb7 11. f5 Re8 12. fxg6 hxg6 13. Ng5 Nf8 14. Nde4 Bxe4 15. Bxe4 d5 16. Bc2 cxd4 17. exd4 e5 18. dxe5 Rxe5 19. Nf3 Rh5 20. Qg3 Qb6+ 21. Nd4 Ne4 22. Bxe4 Bxd4+ 23. cxd4 Qxd4+ 24. Qe3 Qxe4 25. Qxe4 dxe4 26. g4 Rh3 27. Kg2 Rd3 28. Bf4 Ne6 29. Be5 Ng5 30. Rae1 Re8 31. Bf4 Nf3 32. Rc1 g5 33. Bg3 Rd2+ 34. Rf2 Rxf2+ 35. Kxf2 Nd4 36. Ke3 Nf3 37. Rc6 a5 38. Rc5 Ng1 39. Rxg5+ Kh7 40. Rxb5 Ra8 41. Kxe4 Ne2 42. Ke3 Nxg3 43. hxg3 Kg6 44. Kf4 Ra6 45. b3 a4 46. b4 a3 47. g5 Rd6 48. Ke3 Rd1 49. Ra5 Rg1 50. Kf4 Rb1 51. Ra6+ Kg7 52. Rxa3 Rxb4+ 53. Kf5 Rb5+ 54. Kg4 Rc5 55. Ra7 Rc6 56. a4 Kg6 57. Ra5 Rc4+ 58. Kf3 Rb4 59. g4 Rc4 60. Kg3 Rc3+ 61. Kh4 Ra3 62. Ra6+ Kg7 63. Ra8 Kg6 64. a5 Kg7 65. a6 Kg6 66. Rh8 Kg7 67. Rh6 Kg8 68. Rb6 Kg7 69. Rc6 Kg8 70. g6 fxg6 71. Rxg6+ Kh7 72. Rb6 Ra4 73. Kh5 Ra1 74. Rb7+ Kh8 75. a7 1-0

[Event "45th FIDE Womens Olympiad 2024"]
[Site "Budapest"]
[Date "2024.09.16"]
[Round "6.217"]
[White "Fawaz, Nadia"]
[Black "Sakai, Azumi"]
[Result "1-0"]
[ECO "C00"]
[WhiteElo "1747"]
[BlackElo "1871"]
[PlyCount "103"]
[EventDate "2024.09.05"]
[EventType "team-tourn"]
[EventCountry "HUN"]
[WhiteTeam "Lebanon"]
[BlackTeam "Japan"]
[WhiteTeamCountry "LBN"]
[BlackTeamCountry "JPN"]
[TimeControl "40/5400+30:1800+30"]

1. e4 e6 2. Qe2 Be7 3. b3 d5 4. exd5 exd5 5. Bb2 Nf6 6. Nc3 O-O 7. O-O-O c5 8. Nf3 Nc6 9. d4 Bf5 10. dxc5 Bxc5 11. Qb5 Qb6 12. Nxd5 Qxb5 13. Bxb5 Ne4 14. Rhf1 Bg6 15. Nd4 Nb4 16. Nxb4 Bxb4 17. a3 Bc5 18. f3 Nf6 19. Bd3 Rac8 20. Bxg6 hxg6 21. b4 Bd6 22. Ne6 fxe6 23. Rxd6 Kf7 24. Bxf6 Kxf6 25. Rd7 Rf7 26. Rfd1 Rc7 27. Rxf7+ Kxf7 28. Kb2 Kf6 29. Rd4 g5 30. c4 b6 31. Kc3 a6 32. Rd6 Rb7 33. Kd4 g6 34. c5 bxc5+ 35. Kxc5 Rc7+ 36. Kb6 Rc3 37. a4 Ke5 38. Rc6 Rb3 39. Rc4 Ra3 40. a5 Ra2 41. Rg4 Kd6 42. Kxa6 Rc2 43. b5 Rc8 44. b6 Rc5 45. Rd4+ Kc6 46. b7 Kc7 47. Rd7+ Kxd7 48. b8=Q Rc6+ 49. Kb5 Rc1 50. Qb7+ Kd6 51. Qe4 Rc5+ 52. Kb6 1-0

[Event "45th FIDE Womens Olympiad 2024"]
[Site "Budapest"]
[Date "2024.09.16"]
[Round "6.218"]
[White "Shibata, Misaki"]
[Black "Attieh, Skye"]
[Result "0-1"]
[ECO "E51"]
[WhiteElo "1847"]
[BlackElo "1675"]
[PlyCount "72"]
[EventDate "2024.09.05"]
[EventType "team-tourn"]
[EventCountry "HUN"]
[WhiteTeam "Japan"]
[BlackTeam "Lebanon"]
[WhiteTeamCountry "JPN"]
[BlackTeamCountry "LBN"]
[TimeControl "40/5400+30:1800+30"]

1. d4 e6 2. c4 Nf6 3. Nc3 Bb4 4. Bd2 O-O 5. e3 d5 6. Nf3 Nbd7 7. cxd5 exd5 8. Bd3 Nb6 9. a3 Bxc3 10. Bxc3 Bg4 11. b3 Ne4 12. Rc1 f5 13. O-O Rf6 14. h3 Bh5 15. Be2 Nd7 16. Ne5 Bxe2 17. Qxe2 Nxe5 18. dxe5 Rg6 19. Rfd1 Qh4 20. Kf1 Rf8 21. Bb4 Rf7 22. Rxd5 f4 23. Rcd1 h6 24. Rd8+ Kh7 25. Qf3 Nd6 26. Ra8 fxe3 27. Qxe3 Nf5 28. Qd2 Ng3+ 29. Ke1 Ne4 30. Qd4 Rxf2 31. Rd3 Rfxg2+ 32. Kd1 Qh5+ 33. Kc1 Qe2 34. Rd2 Nxd2 35. Bxd2 Rc6+ 36. Kb1 Qd1+ {0-} 0-1

[Event "45th FIDE Womens Olympiad 2024"]
[Site "Budapest"]
[Date "2024.09.16"]
[Round "6.219"]
[White "Al Asmar, Remy"]
[Black "Kinoshita, Kanako"]
[Result "1-0"]
[ECO "A14"]
[WhiteElo "1661"]
[BlackElo "1822"]
[PlyCount "139"]
[EventDate "2024.09.05"]
[EventType "team-tourn"]
[EventCountry "HUN"]
[WhiteTeam "Lebanon"]
[BlackTeam "Japan"]
[WhiteTeamCountry "LBN"]
[BlackTeamCountry "JPN"]
[TimeControl "40/5400+30:1800+30"]

1. c4 c6 2. g3 Nf6 3. Nf3 e6 4. Bg2 d5 5. b3 Nbd7 6. Bb2 Be7 7. O-O O-O 8. d3 Re8 9. Nbd2 h6 10. Qc2 Nf8 11. c5 Ng6 12. d4 b6 13. Ba3 Bb7 14. Rfe1 Bf8 15. e3 Nd7 16. b4 Ba6 17. Nb3 Rc8 18. Bb2 e5 19. dxe5 Ngxe5 20. Nxe5 Nxe5 21. a3 Nd3 22. Red1 Nxb2 23. Qxb2 Be7 24. Rac1 Bf6 25. Qb1 Be2 26. Rd2 Bh5 27. Qc2 Bg6 28. Qd1 Qd7 29. Nd4 bxc5 30. Rxc5 Be7 31. Rc1 h5 32. Qf1 Bg5 33. Bh3 f5 34. Rdc2 Rxe3 35. Nxc6 Ree8 36. f4 Bf6 37. Qd3 Kh7 38. Bg2 d4 39. Rd1 Qd6 40. Rc5 Re4 41. Ne5 Rxc5 42. bxc5 Qxc5 43. Bxe4 fxe4 44. Qxd4 Qxa3 45. Ra1 Qb3 46. Qxa7 e3 47. Re1 e2 48. Rxe2 Be4 49. Qe3 Qxe3+ 50. Rxe3 Bf5 51. Kg2 Bc8 52. h3 Bb7+ 53. Kh2 Bc8 54. g4 g5 55. f5 hxg4 56. hxg4 Kg7 57. Nf3 Bb7 58. Ra3 Bd5 59. Ra7+ Kf8 60. Kg3 Ke8 61. Ra6 Kf7 62. Rd6 Be4 63. Re6 Bc2 64. Ne5+ Kg7 65. Nd7 Bd8 66. Re8 Bc7+ 67. Kh3 Ba4 68. f6+ Kf7 69. Re7+ Kg8 70. f7+ 1-0